fUST/lending_fUST_20251123
["ID","MTS","AMOUNT","RATE_DAILY","PERIOD"]
[394684274,1763879438198,-400.25467719,0.00012533,2]
[394684275,1763879438207,-500.0,0.00012533,2]
[394684276,1763879438216,-500.0,0.00012533,2]
[394684277,1763879438225,-500.0,0.00012533,2]
[394684278,1763879438234,-600.59424677,0.00012533,2]
[394684279,1763879438243,-500.0,0.00012534,2]
[394684280,1763879438252,-500.0,0.00012534,2]
[394684281,1763879438261,-500.0,0.00012534,2]
[394684282,1763879438271,-500.0,0.00012534,2]
[394684283,1763879438280,-500.0,0.00012534,2]
[394684284,1763879438290,-500.0,0.00012534,2]
[394684285,1763879438299,-500.0,0.00012534,2]
[394684286,1763879438308,-500.0,0.00012534,2]
[394684287,1763879438318,-500.0,0.00012534,2]
[394684288,1763879438327,-500.0,0.00012534,2]
[394684289,1763879438337,-500.0,0.00012534,2]
[394684290,1763879438346,-151.0,0.00012534,2]
[394684291,1763879438355,-500.0,0.00012534,2]
[394684292,1763879438365,-151.0,0.00012534,2]
[394684293,1763879438375,-500.0,0.00012534,2]
[394684294,1763879438384,-500.0,0.00012534,2]
[394684295,1763879438393,-500.0,0.00012534,2]
[394684296,1763879438402,-500.0,0.00012534,2]
[394684297,1763879438411,-151.0,0.00012534,2]
[394684298,1763879438421,-152.68961651,0.00012534,2]
[394684299,1763879438438,-152.33132608,0.00012534,2]
[394684300,1763879438448,-500.0,0.00012534,2]
[394684301,1763879438459,-500.0,0.00012534,2]
[394684302,1763879438469,-500.0,0.00012534,2]
[394684303,1763879438478,-151.0,0.00012534,2]
[394684304,1763879438488,-151.0,0.00012547,2]
[394684305,1763879438498,-151.0,0.00012547,2]
[394684306,1763879438508,-151.0,0.00012547,2]
[394684307,1763879438518,-151.0,0.00012547,2]
[394684308,1763879438528,-151.0,0.00012547,2]
[394684309,1763879438538,-151.0,0.00012547,2]
[394684310,1763879438547,-151.0,0.00012547,2]
[394684311,1763879438557,-151.0,0.00012547,2]
[394684312,1763879438566,-151.0,0.00012547,2]
[394684313,1763879438576,-151.0,0.00012547,2]
[394684314,1763879438585,-151.0,0.00012547,2]
[394684315,1763879438595,-151.0,0.00012547,2]
[394684316,1763879438604,-151.0,0.00012547,2]
[394684317,1763879438614,-151.0,0.00012547,2]
[394684318,1763879438623,-151.0,0.00012547,2]
[394684319,1763879438633,-151.0,0.00012547,2]
[394684320,1763879438643,-151.0,0.00012547,2]
[394684321,1763879438652,-151.0,0.00012547,2]
[394684322,1763879438662,-151.0,0.00012547,2]
[394684323,1763879438671,-151.0,0.00012547,2]
[394684324,1763879438681,-151.0,0.00012547,2]
[394684325,1763879438690,-187.78006525,0.00012547,2]
[394684326,1763879438699,-30904.77018565,0.00012555,2]
[394684327,1763879438845,-2044.97081546,0.00012555,2]
[394684377,1763879444523,-4281.41748079,0.00012555,2]
[394684379,1763879444533,-501.52480581,0.00012573,2]
[394684381,1763879444544,-448.79899707,0.00012573,2]
[394684383,1763879444553,-500.0,0.00012573,2]
[394684385,1763879444566,-500.0,0.00012573,2]
[394684387,1763879444575,-500.0,0.00012573,2]
[394684389,1763879444585,-500.0,0.00012573,2]
[394684391,1763879444593,-500.0,0.00012573,2]
[394684393,1763879444603,-500.0,0.00012671,2]
[394684395,1763879444612,-500.0,0.00012671,2]
[394684397,1763879444621,-500.0,0.00012671,2]
[394684399,1763879444631,-500.0,0.00012671,2]
[394684401,1763879444642,-500.0,0.00012671,2]
[394684403,1763879444651,-500.0,0.00012671,2]
[394684405,1763879444660,-500.0,0.00012671,2]
[394684407,1763879444670,-500.0,0.00012671,2]
[394684409,1763879444679,-500.0,0.00012671,2]
[394684411,1763879444688,-500.0,0.00012671,2]
[394684413,1763879444697,-151.0,0.00012671,2]
[394684415,1763879444707,-500.0,0.00012671,2]
[394684417,1763879444716,-151.0,0.00012671,2]
[394684419,1763879444726,-500.0,0.00012671,2]
[394684421,1763879444735,-500.0,0.00012671,2]
[394684423,1763879444745,-500.0,0.00012671,2]
[394684425,1763879444754,-500.0,0.00012671,2]
[394684427,1763879444764,-500.0,0.00012671,2]
[394684429,1763879444773,-500.0,0.00012671,2]
[394684431,1763879444783,-500.0,0.00012671,2]
[394684433,1763879444793,-205.25871633,0.00012671,2]
[394684529,1763879446135,-71.16831336,0.00012671,2]
[394684530,1763879446149,-204.0,0.00012695,2]
[394684531,1763879446158,-500.0,0.0001271,2]
[394684532,1763879446168,-500.0,0.0001271,2]
[394684533,1763879446178,-500.0,0.0001271,2]
[394684534,1763879446189,-500.0,0.0001271,2]
[394684535,1763879446199,-1826.11123484,0.000128,2]
[394684559,1763880419240,2168.18806239,4.43e-05,2]
[394684560,1763880441662,2168.18806239,4.43e-05,2]
[394684561,1763880463812,2168.18806239,4.43e-05,2]
[394684562,1763880486245,2168.18806239,4.43e-05,2]
[394684563,1763880508059,1327.25775044,4.43e-05,2]
[394684564,1763880508081,840.93031195,4.43e-05,2]
[394684565,1763880530039,2168.18806239,4.43e-05,2]
[394684566,1763880551703,2168.18806239,4.43e-05,2]
[394684567,1763880573445,2168.18806239,4.43e-05,2]
[394684568,1763880595292,2168.18806239,4.43e-05,2]
[394684569,1763880603901,486.32743849,4.43e-05,2]
[394684570,1763880603931,1681.8606239,4.43e-05,2]
[394684571,1763880612799,2168.18806239,4.43e-05,2]
[394684572,1763880628594,150.0,4.408e-05,2]
[394684658,1763880632781,-150.0,4.453e-05,2]
[394684659,1763880632791,-150.0,4.498e-05,2]
[394684661,1763880632800,-526.86494536,5e-05,2]
[394684666,1763880632841,-1407.32265494,5e-05,2]
[394684673,1763880636620,150.0,4.408e-05,2]
[394684681,1763880640512,-1087.93066925,5e-05,2]
[394684682,1763880640522,-39.18117073,6.498e-05,2]
[394684683,1763880640534,-137.81882927,6.498e-05,2]
[394684684,1763880640544,-204.0,8.497e-05,2]
[394684685,1763880640553,-152.300606,8.513e-05,2]
[394684686,1763880640563,-309.17987884,8.691e-05,2]
[394684687,1763880640574,-96.70068589,0.00010498,2]
[394684791,1763881231198,1087.93066925,4.43e-05,2]
[394684792,1763881252852,1087.93066925,4.43e-05,2]
[394684793,1763881275237,1087.93066925,4.43e-05,2]
[394684794,1763881297278,665.48709755,4.43e-05,2]
[394684795,1763881354960,157.25954888,0.0001333,9]
[394684796,1763881358339,157.25954888,0.0001176,6]
[394684797,1763881410213,1087.93066925,4.43e-05,2]
[394684798,1763881417901,1087.93066925,4.43e-05,2]
[394684799,1763881615257,5076.88,4.3e-05,2]
[394684800,1763881632679,150.0,4.408e-05,2]
[394684801,1763881655638,150.0,4.408e-05,2]
[394684802,1763881678262,150.0,4.408e-05,2]
[394684803,1763881700306,150.0,4.408e-05,2]
[394684804,1763881722292,150.0,4.408e-05,2]
[394684805,1763881744889,150.0,4.408e-05,2]
[394684806,1763881768088,150.0,4.408e-05,2]
[394684807,1763881789851,150.0,4.408e-05,2]
[394684808,1763881812188,150.0,4.408e-05,2]
[394684865,1763881833280,-150.0,4.464e-05,2]
[394684866,1763881833292,-150.0,4.51e-05,2]
[394684867,1763881833302,-177.0,6.51e-05,2]
[394684868,1763881833311,-157.25954888,8.358e-05,2]
[394684869,1763881833320,-204.0,8.51e-05,2]
[394684870,1763881833330,-290.65900956,9.104e-05,2]
[394684871,1763881833339,-241.65972325,9.104e-05,2]
[394684872,1763881833348,-160.0,0.00010333,2]
[394684873,1763881833357,-353.29325365,0.00010333,2]
[394684874,1763881833366,-231.0,0.0001051,2]
[394684875,1763881833376,-2253.55238905,0.00010748,2]
[394684876,1763881833387,-1200.0,0.00010773,2]
[394684877,1763881833397,-500.0,0.00010774,2]
[394684878,1763881833407,-500.0,0.00010774,2]
[394684879,1763881833416,-500.0,0.00010774,2]
[394684880,1763881833426,-500.0,0.00010774,2]
[394684881,1763881833436,-500.0,0.00010774,2]
[394684882,1763881833446,-500.0,0.00010774,2]
[394684883,1763881833456,-500.0,0.00010774,2]
[394684884,1763881833466,-493.69883969,0.00010774,2]
[394684885,1763881833476,-500.0,0.00010774,2]
[394684886,1763881833485,-500.0,0.00010774,2]
[394684887,1763881833494,-500.0,0.00010774,2]
[394684888,1763881833504,-500.0,0.00010774,2]
[394684889,1763881833513,-300.0,0.00010774,2]
[394684890,1763881833522,-300.0,0.00010774,2]
[394684891,1763881833531,-300.0,0.00010774,2]
[394684892,1763881833540,-300.0,0.00010774,2]
[394684893,1763881833549,-500.0,0.00010775,2]
[394684894,1763881833559,-50000.0,0.00010776,2]
[394684895,1763881833568,-151.0,0.00010776,2]
[394684896,1763881833578,-500.0,0.000109,2]
[394684897,1763881833587,-500.0,0.00010927,2]
[394684898,1763881833596,-264.47677439,0.00010927,2]
[394684899,1763881833605,-550.61558431,0.00010927,2]
[394684900,1763881833614,-151.0,0.00010928,2]
[394684901,1763881833624,-151.0,0.00010928,2]
[394684902,1763881833634,-151.0,0.00010928,2]
[394684903,1763881833643,-151.0,0.00010928,2]
[394684904,1763881833652,-151.0,0.00010928,2]
[394684905,1763881833662,-151.0,0.00010928,2]
[394684906,1763881833671,-151.0,0.00010928,2]
[394684907,1763881833680,-151.0,0.00010928,2]
[394684908,1763881833691,-151.0,0.00010928,2]
[394684909,1763881833701,-151.0,0.00010928,2]
[394684910,1763881833710,-151.0,0.00010928,2]
[394684911,1763881833720,-151.0,0.00010928,2]
[394684912,1763881833729,-151.0,0.00010928,2]
[394684913,1763881833739,-151.0,0.00010928,2]
[394684914,1763881833748,-151.0,0.00010928,2]
[394684915,1763881833758,-151.0,0.00010928,2]
[394684916,1763881833769,-151.0,0.00010928,2]
[394684917,1763881833778,-151.0,0.00010928,2]
[394684918,1763881833788,-151.0,0.00010928,2]
[394684919,1763881833798,-151.0,0.00010928,2]
[394684920,1763881833808,-151.0,0.00010928,2]
[394684921,1763881833820,-1200.0,0.00010956,2]
[394684922,1763881833830,-157.25954888,0.00010958,4]
[394684923,1763881833839,-157.25954888,0.00010958,4]
[394684924,1763881833850,-157.25954888,0.00010958,4]
[394684925,1763881833859,-157.25954888,0.00010958,4]
[394684926,1763881833869,-500.0,0.00010959,2]
[394684927,1763881833879,-500.0,0.00010959,2]
[394684928,1763881833889,-500.0,0.00010959,2]
[394684929,1763881833899,-500.0,0.00010959,2]
[394684930,1763881833909,-288.38463132,0.00010959,2]
[394684931,1763881833918,-500.0,0.00010959,2]
[394684932,1763881833928,-500.0,0.00010959,2]
[394684933,1763881833938,-500.0,0.00010959,2]
[394684934,1763881833948,-500.0,0.00011049,2]
[394684935,1763881833958,-157.25954888,0.00011052,2]
[394684936,1763881833968,-2253.55238905,0.00011062,2]
[394684937,1763881833977,-234.53786525,0.00011118,2]
[394684938,1763881833986,-500.0,0.00011323,2]
[394684939,1763881833996,-2253.55238905,0.00011327,2]
[394684940,1763881834006,-151.000007,0.00011448,2]
[394684941,1763881834017,-420.0,0.00011842,2]
[394684942,1763881834026,-501.17645396,0.000119,2]
[394684943,1763881834036,-487.8584495,0.00012092,2]
[394684944,1763881834045,-526.128,0.00012391,2]
[394684945,1763881834055,-258.0,0.0001251,2]
[394684946,1763881834064,-2361.7306571,0.0001259,2]
[394684947,1763881834073,-187.78006525,0.00012769,2]
[394684948,1763881834083,-594.90842886,0.00012773,2]
[394684949,1763881834092,-500.0,0.00012773,2]
[394684950,1763881834101,-500.0,0.00012773,2]
[394684951,1763881834110,-507.0677543,0.00012773,2]
[394684952,1763881834120,-500.0,0.00012773,2]
[394684953,1763881834129,-500.0,0.00012773,2]
[394684954,1763881834139,-500.0,0.00012773,2]
[394684955,1763881834149,-500.0,0.00012773,2]
[394684956,1763881834158,-501.92230227,0.00012773,2]
[394684957,1763881834168,-500.0,0.00012773,2]
[394684958,1763881834177,-500.0,0.00012773,2]
[394684959,1763881834187,-500.57695321,0.00012773,2]
[394684960,1763881834197,-503.61870072,0.00012773,2]
[394684961,1763881834207,-500.0,0.00012773,2]
[394684962,1763881834219,-501.04321806,0.00012773,2]
[394684963,1763881834230,-500.0,0.00012773,2]
[394684964,1763881834240,-500.0,0.00012773,2]
[394684965,1763881834251,-500.0,0.00012773,2]
[394684966,1763881834260,-500.0,0.00012773,2]
[394684967,1763881834270,-500.0,0.00012773,2]
[394684968,1763881834280,-185.57373292,0.00012776,2]
[394684969,1763881834293,-241.79,0.00012776,2]
[394684970,1763881834305,-500.0,0.00012776,2]
[394684971,1763881834316,-151.0,0.00012776,2]
[394684972,1763881834325,-500.0,0.00012776,2]
[394684973,1763881834335,-500.0,0.00012776,2]
[394684974,1763881834344,-500.0,0.00012776,2]
[394684975,1763881834354,-182000.07779929,0.00012777,2]
[394685018,1763881957170,178.05616294,0.0001333,9]
[394685019,1763881958678,178.05616294,0.0001176,6]
[394685051,1763882557884,172.68047588,0.0001333,9]
[394685052,1763882562748,172.68047588,0.00012,6]
[394685053,1763882563081,172.68047588,0.0001194,6]
[394685054,1763882563407,172.68047588,0.0001188,6]
[394685055,1763882563793,172.68047588,0.0001182,6]
[394685056,1763882564757,172.68047588,0.0001176,6]
[394685062,1763882802091,-168.19308826,7.635e-05,2]
[394685120,1763883032199,-465.60265351,7.559e-05,2]
[394685121,1763883032210,-764.31578755,7.559e-05,2]
[394685122,1763883032220,-1229.91844106,7.635e-05,2]
[394685123,1763883032229,-1229.91844106,7.712e-05,2]
[394685124,1763883032242,-150.0,7.732e-05,2]
[394685125,1763883032264,-172.68047588,8.358e-05,2]
[394685126,1763883032285,-242.23195758,9.107e-05,2]
[394685127,1763883032309,-241.69725002,9.107e-05,2]
[394685128,1763883032348,-466.22585185,9.175e-05,2]
[394685129,1763883032385,-508.73290396,9.612e-05,2]
[394685130,1763883032407,-177.0,9.732e-05,2]
[394685131,1763883032429,-353.29325365,0.00010641,2]
[394685132,1763883032449,-300.0,0.0001085,2]
[394685133,1763883032471,-300.0,0.0001085,2]
[394685134,1763883032492,-300.0,0.0001085,2]
[394685135,1763883032512,-237.0,0.0001085,2]
[394685136,1763883032531,-300.0,0.0001085,2]
[394685137,1763883032551,-50000.0,0.00010851,2]
[394685138,1763883032573,-508.73290396,0.00010851,2]
[394685139,1763883032593,-177.42194258,0.00010956,2]
[394685140,1763883032614,-500.0,0.00010956,2]
[394685141,1763883032635,-500.0,0.00010957,2]
[394685142,1763883032656,-500.0,0.00010957,2]
[394685143,1763883032676,-500.0,0.00010957,2]
[394685144,1763883032696,-450.56915816,0.00010957,2]
[394685145,1763883032720,-49.43084184,0.00010957,2]
[394685146,1763883032741,-500.0,0.00010957,2]
[394685147,1763883032763,-7.82915816,0.00010957,2]
[394685162,1763883037805,-300.0,0.0001085,2]
[394685163,1763883037817,-200.0,0.0001085,2]
[394685164,1763883037826,-288.57536421,0.0001085,2]
[394685233,1763883046043,-1215.86785834,0.00010741,2]
[394685235,1763883046054,-8360.14226583,0.00010741,2]
[394685237,1763883046063,-211.42463579,0.0001085,2]
[394685239,1763883046072,-500.0,0.0001085,2]
[394685241,1763883046082,-500.0,0.0001085,2]
[394685243,1763883046091,-500.0,0.0001085,2]
[394685244,1763883046099,-500.0,0.0001085,2]
[394685246,1763883046109,-299.36988397,0.0001085,2]
[394685248,1763883046118,-458.47101441,0.0001085,2]
[394685250,1763883046129,-41.52898559,0.0001085,2]
[394685252,1763883046139,-500.0,0.0001085,2]
[394685254,1763883046147,-500.0,0.0001085,2]
[394685256,1763883046156,-500.0,0.0001085,2]
[394685258,1763883046165,-500.0,0.0001085,2]
[394685260,1763883046174,-500.0,0.0001085,2]
[394685262,1763883046183,-500.0,0.0001085,2]
[394685264,1763883046192,-500.0,0.0001085,2]
[394685265,1763883046202,-500.0,0.0001085,2]
[394685267,1763883046211,-500.0,0.0001085,2]
[394685269,1763883046221,-276.6402402,0.0001085,2]
[394685271,1763883046230,-500.0,0.0001085,2]
[394685273,1763883046239,-500.0,0.0001085,2]
[394685275,1763883046248,-500.0,0.0001085,2]
[394685277,1763883046258,-500.0,0.0001085,2]
[394685279,1763883046267,-500.0,0.0001085,2]
[394685281,1763883046276,-500.0,0.0001085,2]
[394685283,1763883046285,-500.0,0.0001085,2]
[394685285,1763883046293,-500.0,0.0001085,2]
[394685286,1763883046302,-500.0,0.0001085,2]
[394685287,1763883046312,-500.0,0.0001085,2]
[394685289,1763883046321,-500.0,0.0001085,2]
[394685291,1763883046330,-532.71591946,0.0001085,2]
[394685293,1763883046339,-500.0,0.0001085,2]
[394685294,1763883046348,-500.0,0.0001085,2]
[394685295,1763883046358,-500.0,0.0001085,2]
[394685296,1763883046367,-500.0,0.00010956,2]
[394685297,1763883046376,-500.0,0.00010956,2]
[394685299,1763883046385,-500.0,0.00010956,2]
[394685301,1763883046394,-194.87328707,0.00010956,2]
[394685302,1763883046404,-500.0,0.00010956,2]
[394685303,1763883046413,-621.37100316,0.00010956,2]
[394685304,1763883046422,-172.68047588,0.00010958,4]
[394685305,1763883046432,-172.68047588,0.00010958,4]
[394685306,1763883046441,-172.68047588,0.00010958,4]
[394685307,1763883046451,-172.68047588,0.00010958,4]
[394685308,1763883046461,-172.68047588,0.00010958,4]
[394685309,1763883046471,-500.0,0.00010959,2]
[394685310,1763883046480,-500.0,0.00010959,2]
[394685311,1763883046489,-500.0,0.00010959,2]
[394685312,1763883046499,-500.0,0.00010959,2]
[394685313,1763883046509,-500.0,0.00010959,2]
[394685314,1763883046519,-587.60004919,0.00010959,2]
[394685315,1763883046528,-500.0,0.00010959,2]
[394685316,1763883046538,-500.0,0.00010959,2]
[394685317,1763883046548,-473.25716394,0.00010959,2]
[394685318,1763883046562,-500.0,0.00010959,2]
[394685319,1763883046573,-500.0,0.00010959,2]
[394685320,1763883046583,-500.0,0.00010959,2]
[394685321,1763883046592,-172.68047588,0.00011052,2]
[394685322,1763883046602,-204.0,0.00011732,2]
[394685323,1763883046613,-420.0,0.00011925,2]
[394685324,1763883046623,-508.73290396,0.00012091,2]
[394685325,1763883046633,-2253.55238905,0.00012346,2]
[394685326,1763883046644,-151.0,0.00012662,2]
[394685327,1763883046654,-500.0,0.00012662,2]
[394685328,1763883046665,-514.84070869,0.00012662,2]
[394685329,1763883046675,-250.0,0.00012662,2]
[394685330,1763883046685,-500.0,0.00012662,2]
[394685331,1763883046694,-250.0,0.00012662,2]
[394685332,1763883046704,-500.0,0.00012662,2]
[394685333,1763883046713,-250.0,0.00012662,2]
[394685334,1763883046722,-500.0,0.00012662,2]
[394685335,1763883046731,-250.0,0.00012662,2]
[394685336,1763883046741,-500.0,0.00012662,2]
[394685337,1763883046750,-250.0,0.00012662,2]
[394685338,1763883046760,-500.0,0.00012662,2]
[394685339,1763883046769,-250.0,0.00012662,2]
[394685340,1763883046779,-250.0,0.00012662,2]
[394685341,1763883046788,-500.0,0.00012662,2]
[394685342,1763883046798,-250.0,0.00012662,2]
[394685343,1763883046807,-250.0,0.00012662,2]
[394685344,1763883046817,-250.0,0.00012662,2]
[394685345,1763883046829,-217.1065607,0.00012662,2]
[394685346,1763883046842,-282.8934393,0.00012662,2]
[394685347,1763883046852,-250.0,0.00012662,2]
[394685348,1763883046861,-250.0,0.00012662,2]
[394685349,1763883046871,-500.0,0.00012662,2]
[394685350,1763883046880,-1000.0,0.00012662,2]
[394685351,1763883046889,-250.0,0.00012662,2]
[394685352,1763883046899,-250.0,0.00012662,2]
[394685353,1763883046909,-500.0,0.00012662,2]
[394685354,1763883046919,-682.88611566,0.00012662,2]
[394685355,1763883046928,-250.0,0.00012662,2]
[394685356,1763883046938,-500.0,0.00012662,2]
[394685357,1763883046947,-250.0,0.00012662,2]
[394685358,1763883046956,-250.0,0.00012662,2]
[394685359,1763883046966,-500.0,0.00012662,2]
[394685360,1763883046975,-250.0,0.00012662,2]
[394685361,1763883046984,-500.0,0.00012662,2]
[394685362,1763883046993,-250.0,0.00012662,2]
[394685363,1763883047003,-250.0,0.00012662,2]
[394685364,1763883047012,-500.0,0.00012662,2]
[394685365,1763883047021,-250.0,0.00012662,2]
[394685366,1763883047030,-187.78006525,0.00012662,2]
[394685367,1763883047039,-250.0,0.00012662,2]
[394685368,1763883047049,-250.0,0.00012662,2]
[394685370,1763883047058,-250.0,0.00012662,2]
[394685371,1763883047068,-250.0,0.00012662,2]
[394685372,1763883047079,-250.0,0.00012662,2]
[394685373,1763883047088,-250.0,0.00012662,2]
[394685374,1763883047098,-250.0,0.00012662,2]
[394685375,1763883047108,-151.0,0.00012662,2]
[394685376,1763883047118,-151.0,0.00012662,2]
[394685377,1763883047128,-151.0,0.00012662,2]
[394685378,1763883047139,-151.0,0.00012662,2]
[394685379,1763883047148,-151.0,0.00012662,2]
[394685380,1763883047158,-151.0,0.00012662,2]
[394685381,1763883047167,-151.0,0.00012662,2]
[394685382,1763883047176,-151.0,0.00012662,2]
[394685383,1763883047185,-151.0,0.00012662,2]
[394685384,1763883047195,-151.0,0.00012662,2]
[394685385,1763883047204,-151.0,0.00012662,2]
[394685386,1763883047213,-151.0,0.00012662,2]
[394685387,1763883047222,-151.0,0.00012662,2]
[394685388,1763883047231,-151.0,0.00012662,2]
[394685389,1763883047241,-151.0,0.00012662,2]
[394685390,1763883047250,-151.0,0.00012662,2]
[394685391,1763883047259,-151.0,0.00012662,2]
[394685392,1763883047268,-151.0,0.00012662,2]
[394685393,1763883047278,-151.0,0.00012662,2]
[394685394,1763883047287,-151.0,0.00012662,2]
[394685395,1763883047297,-151.0,0.00012662,2]
[394685396,1763883047306,-151.0,0.00012662,2]
[394685397,1763883047316,-229.905,0.00012668,2]
[394685398,1763883047326,-151.0,0.00012669,2]
[394685399,1763883047335,-151.0,0.00012669,2]
[394685400,1763883047344,-76454.35948278,0.00012669,2]
[394685401,1763883047359,-8012.06256,0.00012669,2]
[394685402,1763883047370,-596.16442264,0.00012669,2]
[394685403,1763883047385,-11468.95755193,0.00012669,2]
[394685404,1763883047396,-2281.28905335,0.00012669,2]
[394685405,1763883154204,153.987316,0.0001333,9]
[394685406,1763883154560,153.987316,0.0001333,9]
[394685407,1763883154875,153.987316,0.0001333,9]
[394685408,1763883155191,153.987316,0.0001333,9]
[394685409,1763883159700,153.987316,0.00012,6]
[394685410,1763883160103,153.987316,0.00011955,6]
[394685411,1763883161191,153.987316,0.0001191,6]
[394685412,1763883161499,153.987316,0.00011865,6]
[394685413,1763883407954,10000.0,0.0002,30]
[394685455,1763883812667,153.987316,0.00012,6]
[394685456,1763883815678,153.987316,0.00011978,6]
[394685457,1763883817718,153.987316,0.00011955,6]
[394685557,1763884232921,-153.987316,7.408e-05,2]
[394685558,1763884232932,-153.987316,7.483e-05,2]
[394685559,1763884232943,-150.0,7.751e-05,2]
[394685560,1763884232954,-358.895368,9.325e-05,2]
[394685561,1763884232967,-207.31211033,9.325e-05,2]
[394685562,1763884232977,-177.0,9.751e-05,2]
[394685563,1763884232987,-626.09963333,0.00010225,2]
[394685564,1763884232996,-155.03719214,0.00010327,2]
[394685565,1763884233195,-4.96280786,0.00010327,2]
[394685566,1763884233206,-299.75386666,0.00010327,2]
[394685573,1763884238152,-53.53938699,0.00010327,2]
[394685574,1763884238162,-217.471,0.00010958,2]
[394685575,1763884238171,-153.987316,0.00010958,4]
[394685576,1763884238181,-153.987316,0.00010958,4]
[394685577,1763884238190,-153.987316,0.00010958,4]
[394685578,1763884238200,-296.70345633,0.00010958,2]
[394685579,1763884238217,-360.82507419,0.00010958,2]
[394685582,1763884240294,-542.47146948,0.00010958,2]
[394685583,1763884240304,-999.0,0.00010959,2]
[394685584,1763884240313,-153.987316,0.00011052,2]
[394685585,1763884240323,-300.0,0.00011175,2]
[394685586,1763884240333,-300.0,0.00011176,2]
[394685587,1763884240342,-300.0,0.00011176,2]
[394685588,1763884240351,-300.0,0.00011176,2]
[394685589,1763884240360,-300.0,0.00011176,2]
[394685591,1763884240370,-300.0,0.00011176,2]
[394685592,1763884240379,-300.0,0.00011176,2]
[394685594,1763884240388,-300.0,0.00011176,2]
[394685595,1763884240397,-300.0,0.00011176,2]
[394685597,1763884240407,-300.0,0.00011176,2]
[394685599,1763884240416,-300.0,0.00011176,2]
[394685600,1763884240426,-300.0,0.00011176,2]
[394685602,1763884240434,-281.87750516,0.00011176,2]
[394685640,1763884244711,-18.12249484,0.00011176,2]
[394685641,1763884244722,-300.0,0.00011176,2]
[394685642,1763884244732,-300.0,0.00011176,2]
[394685643,1763884244740,-300.0,0.00011176,2]
[394685644,1763884244750,-600.0,0.00011176,2]
[394685645,1763884244758,-626.09963333,0.00011311,2]
[394685646,1763884244768,-204.0,0.00011751,2]
[394685647,1763884244778,-420.0,0.00012278,2]
[394685648,1763884244787,-720.0,0.00012294,2]
[394685649,1763884244796,-2253.55238905,0.00012341,2]
[394685650,1763884244805,-158.61778999,0.00012366,2]
[394685651,1763884244814,-151.0,0.00012366,2]
[394685652,1763884244823,-151.0,0.00012366,2]
[394685653,1763884244832,-151.0,0.00012366,2]
[394685654,1763884244841,-250.0,0.00012366,2]
[394685655,1763884244850,-514.84070869,0.00012366,2]
[394685656,1763884244859,-151.0,0.00012366,2]
[394685657,1763884244868,-250.0,0.00012366,2]
[394685658,1763884244878,-151.0,0.00012366,2]
[394685659,1763884244887,-250.0,0.00012366,2]
[394685660,1763884244899,-151.0,0.00012366,2]
[394685661,1763884244910,-250.0,0.00012366,2]
[394685662,1763884244919,-151.0,0.00012366,2]
[394685663,1763884244928,-250.0,0.00012366,2]
[394685664,1763884244938,-151.0,0.00012366,2]
[394685665,1763884244947,-250.0,0.00012366,2]
[394685666,1763884244956,-151.0,0.00012366,2]
[394685667,1763884244965,-250.0,0.00012366,2]
[394685668,1763884244977,-151.0,0.00012366,2]